bitfinex-derivatives/quotes_SOLF0:USTF0_20260110
["timestamp","ask_amount","ask_price","bid_price","bid_amount"]
[1768035974701,5.49652197,136.33,136.26,6.66105303]
[1768035974906,0.32867225,136.32,136.26,6.66105303]
[1768035991614,0.32867225,136.32,136.26,0.04755303]
[1768035993513,0.31688696,136.31,136.26,0.04755303]
[1768035994010,0.31688696,136.31,136.24,6.6141]
[1768035994413,0.31688696,136.31,136.27,0.04931592]
[1768035994615,0.31688696,136.3,136.27,0.04931592]
[1768035996819,0.31688696,136.29,136.23,86.74]
[1768035999818,0.31688696,136.29,136.23,93.3549]
[1768036018637,0.31688696,136.29,136.23,86.74]
[1768036029151,6.66673362,136.3,136.23,86.74]
[1768036029350,6.99593311,136.3,136.23,86.74]
[1768036038258,5.51807612,136.29,136.23,86.74]
[1768036038452,6.99593311,136.3,136.23,86.74]
[1768036038653,5.51807612,136.29,136.23,86.74]
[1768036038858,6.99593311,136.3,136.23,86.74]
[1768036039058,5.51807612,136.29,136.23,86.74]
[1768036039358,6.99593311,136.3,136.23,86.74]
[1768036039560,5.51863607,136.29,136.23,86.74]
[1768036039856,6.99593311,136.3,136.23,86.74]
[1768036040058,5.51863607,136.29,136.23,86.74]
[1768036040258,6.99593311,136.3,136.23,86.74]
[1768036040561,5.51885836,136.29,136.23,86.74]
[1768036040759,6.99593311,136.3,136.23,86.74]
[1768036040959,5.51885836,136.29,136.23,86.74]
[1768036041159,6.99593311,136.3,136.23,86.74]
[1768036041362,5.51911923,136.29,136.23,86.74]
[1768036041562,6.99593311,136.3,136.23,86.74]
[1768036041754,5.51911923,136.29,136.23,86.74]
[1768036041954,6.99593311,136.3,136.23,86.74]
[1768036042154,5.51911923,136.29,136.23,86.74]
[1768036042350,6.99593311,136.3,136.23,86.74]
[1768036042556,5.51914355,136.29,136.23,86.74]
[1768036042855,6.99593311,136.3,136.23,86.74]
[1768036043055,5.51933962,136.29,136.23,86.74]
[1768036043256,6.99593311,136.3,136.23,86.74]
[1768036043458,6.99593311,136.3,136.22,6.6151]
[1768036043459,12.46086824,136.29,136.22,6.6151]
[1768036043658,6.94139949,136.29,136.22,6.6151]
[1768036044270,0.04866001,136.27,136.22,6.6151]
[1768036046066,0.04866001,136.27,136.2,94.50627782]
[1768036046263,0.3778595,136.27,136.2,86.74]
[1768036047265,102.8801,136.26,136.15,6.6186]
[1768036047471,0.32919949,136.23,136.13,1.15007782]
[1768036048169,0.05464545,136.19,136.13,1.15007782]
[1768036048668,0.05464545,136.19,136.13,7.76967782]
[1768036052167,0.05464545,136.19,136.14,6.6192]
[1768036061273,0.05464545,136.19,136.15,6.6188]
[1768036079197,0.05464545,136.19,136.16,6.6183]
[1768036087204,0.32239646,136.24,136.15,1.15007782]
[1768036087400,0.32239646,136.24,136.16,0.04885572]
[1768036088703,0.32239646,136.24,136.18,6.6173]
[1768036089504,0.32239646,136.24,136.2,0.04836394]
[1768036105923,0.32239646,136.26,136.2,0.04836394]
[1768036107626,0.32239646,136.26,136.2,6.66476394]
[1768036108027,0.32239646,136.26,136.2,0.04836394]
[1768036109617,0.32239646,136.26,136.21,6.6159]
[1768036114225,0.31028877,136.28,136.21,6.6159]
[1768036115030,0.31028877,136.28,136.23,0.05271566]
[1768036118328,6.92298877,136.28,136.23,0.05271566]
[1768036118938,0.31028877,136.27,136.23,0.05271566]
[1768036125235,0.31028877,136.27,136.16,102.9495]
[1768036125435,0.04817326,136.26,136.16,102.9495]
[1768036125941,0.31028877,136.27,136.16,102.9495]
[1768036126539,0.05173415,136.23,136.2,6.6164]
[1768036140247,0.05173415,136.23,136.15,88.59869642]
[1768036140248,0.38143899,136.23,136.15,88.59869642]
[1768036140545,0.38143899,136.23,136.15,86.76]
[1768036141247,0.32970484,136.22,136.11,102.9895]
[1768036141447,0.32970484,136.22,136.11,189.7495]
[1768036142145,0.05158501,136.18,136.11,189.7495]
[1768036142647,0.05158501,136.18,136.13,6.6195]
[1768036156365,0.05158501,136.18,136.14,6.6193]
[1768036159073,0.32970484,136.2,136.14,6.6193]
[1768036159270,0.32970484,136.2,136.15,0.05257931]
[1768036176288,0.310722,136.19,136.15,0.05257931]
[1768036176587,0.310722,136.19,136.11,86.76]
[1768036176588,0.35876731,136.19,136.11,86.76]
[1768036177680,0.310722,136.18,136.11,93.3807]
[1768036178587,0.05088047,136.16,136.11,93.3807]
[1768036183591,0.36160247,136.16,136.11,93.3807]
[1768036188289,0.36160247,136.16,136.11,86.76]
[1768036188789,0.36160247,136.16,136.09,6.6216]
[1768036190690,0.36160247,136.16,136.08,86.8]
[1768036190891,0.32958558,136.13,136.03,1.15164705]
[1768036191887,0.04982214,136.09,136.03,1.15164705]
[1768036192596,0.04982214,136.09,136.03,7.77604705]
[1768036202201,0.04982214,136.09,136.04,6.6241]
[1768036203799,0.32958558,136.11,136.05,7.83171651]
[1768036209812,0.31104403,136.13,136.06,6.6231]
[1768036210311,0.31104403,136.13,136.07,6.6227]
[1768036210809,0.31104403,136.13,136.08,0.05240886]
[1768036211812,6.93004403,136.15,136.08,0.05240886]
[1768036212014,0.31104403,136.14,136.08,0.05240886]
[1768036252947,0.32816051,136.13,136.08,0.05240886]
[1768036254548,0.32816051,136.12,136.08,0.05240886]
[1768036262045,0.32816051,136.12,136.08,6.67460886]
[1768036263455,0.32413628,136.14,136.08,6.67460886]
[1768036264054,0.32413628,136.14,136.08,6.6222]
[1768036264251,0.32413628,136.14,136.1,0.05130149]
[1768036331026,0.32413628,136.14,136.08,6.6223]
[1768036331227,0.31361567,136.12,136.08,6.6223]
[1768036343732,0.05174854,136.13,136.08,6.6223]
[1768036353643,0.05174854,136.13,136.07,103.0218]
[1768036354046,0.3004907,136.16,136.07,103.0218]
[1768036354243,5.59947643,136.15,136.07,103.0218]
[1768036354542,5.59947643,136.14,136.09,6.6214]
[1768036354731,0.3004907,136.16,136.09,6.6214]
[1768036354936,5.59947268,136.15,136.1,0.04858513]
[1768036355139,5.59947268,136.14,136.1,0.04858513]
[1768036355340,0.3004907,136.16,136.1,0.04858513]
[1768036355541,5.59936021,136.15,136.1,0.04858513]
[1768036355740,5.59936021,136.14,136.1,0.04858513]
[1768036356038,0.3004907,136.16,136.1,0.04858513]
[1768036356239,5.59928074,136.15,136.1,0.04858513]
[1768036356432,5.59928074,136.14,136.1,0.04858513]
[1768036356640,0.3004907,136.16,136.1,0.04858513]
[1768036356938,5.59927483,136.15,136.1,0.04858513]
[1768036357129,5.59927483,136.14,136.1,0.04858513]
[1768036357443,0.3004907,136.16,136.1,0.04858513]
[1768036357644,5.59920478,136.15,136.1,0.04858513]
[1768036357845,5.59920478,136.14,136.1,0.04858513]
[1768036358036,0.3004907,136.16,136.1,0.04858513]
[1768036358236,5.59915218,136.15,136.1,0.04858513]
[1768036358534,5.59915218,136.14,136.1,0.04858513]
[1768036358730,0.3004907,136.16,136.1,0.04858513]
[1768036358938,5.59914513,136.15,136.1,0.04858513]
[1768036359135,5.59914513,136.14,136.1,0.04858513]
[1768036359336,0.3004907,136.16,136.1,0.04858513]
[1768036359538,5.61409591,136.15,136.1,0.04858513]
[1768036359731,5.61409591,136.14,136.1,0.04858513]
[1768036359936,0.3004907,136.15,136.1,0.04858513]
[1768036360136,5.61409591,136.14,136.1,0.04858513]
[1768036360343,0.3004907,136.15,136.1,0.04858513]
[1768036360544,5.61351591,136.14,136.1,0.04858513]
[1768036360744,0.3004907,136.15,136.1,0.04858513]
[1768036361043,5.61351591,136.14,136.1,0.04858513]
[1768036361244,0.3004907,136.15,136.1,0.04858513]
[1768036361443,5.61318619,136.14,136.1,0.04858513]
[1768036361641,0.3004907,136.15,136.1,0.04858513]
[1768036361848,5.61318619,136.14,136.1,0.04858513]
[1768036362047,0.3004907,136.15,136.1,0.04858513]
[1768036362247,5.61290376,136.14,136.1,0.04858513]
[1768036362436,0.3004907,136.15,136.1,0.04858513]
[1768036362640,5.61289343,136.14,136.1,0.04858513]
[1768036362839,0.3004907,136.15,136.1,0.04858513]
[1768036363041,5.61289343,136.14,136.1,0.04858513]
[1768036363248,0.3004907,136.15,136.1,0.04858513]
[1768036363440,5.61268477,136.14,136.1,0.04858513]
[1768036363641,0.3004907,136.15,136.1,0.04858513]
[1768036363846,5.61268477,136.14,136.1,0.04858513]
[1768036364045,0.3004907,136.15,136.1,0.04858513]
[1768036364246,5.61268451,136.14,136.1,0.04858513]
[1768036364447,0.3004907,136.15,136.1,0.04858513]
[1768036364637,5.61250711,136.14,136.1,0.04858513]
[1768036364842,0.3004907,136.15,136.1,0.04858513]
[1768036365048,5.61250711,136.14,136.1,0.04858513]
[1768036365249,0.3004907,136.15,136.1,0.04858513]
[1768036365449,5.61237385,136.14,136.1,0.04858513]
[1768036365649,0.3004907,136.15,136.1,0.04858513]
[1768036365850,5.61237385,136.14,136.1,0.04858513]
[1768036366047,0.3004907,136.15,136.1,0.04858513]
[1768036384676,5.61164492,136.14,136.1,0.04858513]
[1768036384879,0.32461596,136.14,136.1,0.04858513]
[1768036500260,0.32461596,136.14,136.07,6.6225]
[1768036500559,0.30097269,136.12,136.07,6.6225]
[1768036500761,0.30097269,136.12,136.03,103.0517]
[1768036501663,0.04648962,136.09,136.06,6.6232]
[1768036524672,0.37870022,136.09,136.02,86.84]
[1768036524865,0.37870022,136.09,136.04,6.6242]
[1768036545500,0.04648962,136.09,136.04,6.6242]
[1768036545796,0.04648962,136.09,136.04,1.15344489]
[1768036546100,0.32212591,136.13,136.06,1.15344489]
[1768036547195,0.32212591,136.13,136.08,0.05096679]
[1768036577635,0.32212591,136.13,136.09,6.6217]
[1768036602242,6.6188,136.16,136.09,6.6217]
[1768036602442,5.86180847,136.15,136.09,6.6217]
[1768036602740,5.54485438,136.14,136.09,6.6217]
[1768036602941,0.31695409,136.15,136.09,6.6217]
[1768036603146,5.54485438,136.14,136.11,0.05032768]
[1768036603337,0.31695409,136.15,136.11,0.05032768]
[1768036603538,5.5448548,136.14,136.11,0.05032768]
[1768036603738,0.31695409,136.15,136.11,0.05032768]
[1768036603938,5.5448548,136.14,136.11,0.05032768]
[1768036604139,0.31695409,136.15,136.11,0.05032768]
[1768036604338,5.54490551,136.14,136.11,0.05032768]
[1768036604543,0.31695409,136.15,136.11,0.05032768]
[1768036612348,5.54584164,136.14,136.11,0.05032768]
[1768036612648,0.31695409,136.15,136.11,0.05032768]
[1768036612947,5.54584164,136.14,136.11,0.05032768]
[1768036613148,0.31695409,136.15,136.11,0.05032768]
[1768036613447,5.54607025,136.14,136.11,0.05032768]
[1768036613643,0.31695409,136.15,136.11,0.05032768]
[1768036613845,5.54607025,136.14,136.11,0.05032768]
[1768036614049,0.31695409,136.15,136.11,0.05032768]
[1768036614248,5.54607025,136.14,136.11,0.05032768]
[1768036614453,0.31695409,136.15,136.11,0.05032768]
[1768036614647,5.87775866,136.14,136.04,103.0398]
[1768036614851,0.38087094,136.14,136.04,103.0398]
[1768036615354,0.33139519,136.14,136.04,103.0398]
[1768036615555,0.33139519,136.14,136.08,6.6223]
[1768036615955,0.04927838,136.1,136.08,6.6223]
[1768036619756,0.33139519,136.14,136.08,6.67308503]
[1768036637269,5.57016165,136.13,136.08,6.67308503]
[1768036637471,0.33139519,136.14,136.08,6.67308503]
[1768036638873,5.57008779,136.13,136.08,6.67308503]
[1768036639062,0.33139519,136.14,136.08,6.67308503]
[1768036639262,5.57008779,136.13,136.08,6.67308503]
[1768036639462,0.33139519,136.14,136.08,6.67308503]
[1768036639663,5.5700522,136.13,136.08,6.67308503]
[1768036639864,0.33139519,136.14,136.08,6.67308503]
[1768036640065,5.5700522,136.13,136.08,6.67308503]
[1768036640365,0.33139519,136.14,136.08,6.67308503]
[1768036645078,5.57008897,136.13,136.08,6.67308503]
[1768036645374,0.33139519,136.14,136.08,6.67308503]
[1768036645574,5.56950274,136.13,136.08,6.67308503]
[1768036645874,5.87303937,136.12,136.08,0.05078503]
[1768036646074,0.3034332,136.12,136.08,0.05078503]
[1768036649571,104.7434108,136.18,136.08,6.67308503]
[1768036649572,0.3034332,136.15,136.08,6.67308503]
[1768036649773,5.86787376,136.14,136.08,6.67308503]
[1768036650080,5.56444056,136.13,136.08,6.6223]
[1768036650382,0.3034332,136.14,136.08,6.6223]
[1768036650576,5.5640176,136.13,136.1,0.04775671]
[1768036650775,0.3034332,136.14,136.1,0.04775671]
[1768036650975,5.5640176,136.13,136.1,0.04775671]
[1768036651174,0.3034332,136.14,136.1,0.04775671]
[1768036651372,5.86708415,136.13,136.1,0.04775671]
[1768036651571,0.3034332,136.13,136.1,0.04775671]
[1768036666399,0.32145217,136.16,136.1,0.04775671]
[1768036666693,5.85604926,136.15,136.1,0.04775671]
[1768036666895,0.32145217,136.15,136.1,0.04775671]
[1768036680808,0.32145217,136.15,136.1,6.66885671]
[1768036707145,5.54802134,136.14,136.1,6.66885671]
[1768036707434,0.32145217,136.15,136.1,6.66885671]
[1768036707636,5.54805621,136.14,136.1,6.66885671]
[1768036707830,0.32145217,136.15,136.1,6.66885671]
[1768036708028,5.54805621,136.14,136.1,6.66885671]
[1768036708230,0.32145217,136.15,136.1,6.66885671]
[1768036708434,5.5484768,136.14,136.1,6.66885671]
[1768036708635,0.32145217,136.15,136.1,6.66885671]
[1768036708828,5.5484768,136.14,136.1,6.66885671]
[1768036709125,0.32145217,136.15,136.1,6.66885671]
[1768036709325,5.54898206,136.14,136.1,6.66885671]
[1768036709522,0.32145217,136.15,136.1,6.66885671]
[1768036709728,5.54900727,136.14,136.1,6.66885671]
[1768036709922,0.32145217,136.15,136.1,6.66885671]
[1768036710126,5.54900727,136.14,136.1,6.66885671]
[1768036710338,0.32145217,136.15,136.1,6.66885671]
[1768036710640,5.54976609,136.14,136.1,6.66885671]
[1768036710837,0.32145217,136.15,136.1,6.66885671]
[1768036711033,5.54976609,136.14,136.1,6.66885671]
[1768036711332,0.32145217,136.15,136.1,6.66885671]
[1768036711534,5.55054025,136.14,136.1,6.66885671]
[1768036711830,0.32145217,136.15,136.1,6.66885671]
[1768036712030,5.55054025,136.14,136.1,6.66885671]
[1768036712331,0.32145217,136.15,136.1,6.66885671]
[1768036712527,5.55054329,136.14,136.1,6.66885671]
[1768036712727,0.32145217,136.15,136.1,6.66885671]
[1768036712933,5.55054329,136.14,136.1,6.66885671]
[1768036713133,0.32145217,136.15,136.1,6.66885671]
[1768036713341,5.5505404,136.14,136.1,6.66885671]
[1768036713636,0.32145217,136.15,136.1,6.66885671]
[1768036713837,5.55054638,136.14,136.1,6.66885671]
[1768036714032,0.32145217,136.15,136.1,6.66885671]
[1768036714337,5.55054638,136.14,136.1,6.66885671]
[1768036714637,0.32145217,136.15,136.1,6.66885671]
[1768036714840,5.55054644,136.14,136.1,6.66885671]
[1768036715034,0.32145217,136.15,136.1,6.66885671]
[1768036715226,5.55054644,136.14,136.1,6.66885671]
[1768036715426,0.32145217,136.15,136.1,6.66885671]
[1768036715629,5.55054651,136.14,136.1,6.66885671]
[1768036715826,0.32145217,136.15,136.1,6.66885671]
[1768036716041,5.55054651,136.14,136.1,6.66885671]
[1768036716231,0.32145217,136.15,136.1,6.66885671]
[1768036716432,5.55054656,136.14,136.1,6.66885671]
[1768036716730,0.32145217,136.15,136.1,6.66885671]
[1768036716932,5.55054656,136.14,136.1,6.66885671]
[1768036717230,0.32145217,136.15,136.1,6.66885671]
[1768036717429,5.55054661,136.14,136.1,6.66885671]
[1768036717627,0.32145217,136.15,136.1,6.66885671]
[1768036717842,5.55054661,136.14,136.1,0.04775671]
[1768036718138,0.32145217,136.15,136.1,0.04775671]
[1768036718338,5.5507435,136.14,136.1,0.04775671]
[1768036718539,0.32145217,136.15,136.1,0.04775671]
[1768036718740,5.55057154,136.14,136.1,0.04775671]
[1768036718935,0.32145217,136.15,136.1,0.04775671]
[1768036719136,5.5507687,136.14,136.1,0.04775671]
[1768036719338,0.32145217,136.15,136.1,0.04775671]
[1768036719541,5.55947206,136.14,136.1,0.04775671]
[1768036719841,0.32145217,136.15,136.1,0.04775671]
[1768036720039,5.55947206,136.14,136.1,0.04775671]
[1768036720235,0.32145217,136.15,136.1,0.04775671]
[1768036720439,5.55917863,136.14,136.1,0.04775671]
[1768036720632,0.32145217,136.15,136.1,0.04775671]
[1768036720837,5.55917863,136.14,136.1,0.04775671]
[1768036721041,0.32145217,136.15,136.1,0.04775671]
[1768036721236,5.55917863,136.14,136.1,0.04775671]
[1768036721435,0.32145217,136.15,136.1,0.04775671]
[1768036721636,5.55894437,136.14,136.1,0.04775671]
[1768036721932,0.32145217,136.15,136.1,0.04775671]
[1768036722129,5.55894437,136.14,136.1,0.04775671]
[1768036722334,0.32145217,136.15,136.1,0.04775671]
[1768036722635,5.55874759,136.14,136.1,0.04775671]
[1768036722933,0.32145217,136.15,136.1,0.04775671]
[1768036723133,5.55874755,136.14,136.1,0.04775671]
[1768036723329,0.32145217,136.15,136.1,0.04775671]
[1768036723531,5.55857768,136.14,136.1,0.04775671]
[1768036723735,0.32145217,136.15,136.1,0.04775671]
[1768036723937,5.55857768,136.14,136.1,0.04775671]
[1768036724137,0.32145217,136.15,136.1,0.04775671]
[1768036724338,5.55855397,136.14,136.1,0.04775671]
[1768036724533,0.32145217,136.15,136.1,0.04775671]
[1768036724737,5.55842758,136.14,136.1,0.04775671]
[1768036724934,0.32145217,136.15,136.1,0.04775671]
[1768036725143,5.55842758,136.14,136.1,0.04775671]
[1768036725346,0.32145217,136.15,136.1,0.04775671]
[1768036725546,5.55831928,136.14,136.1,0.04775671]
[1768036725747,0.32145217,136.15,136.1,0.04775671]
[1768036725948,5.55831928,136.14,136.1,0.04775671]
[1768036726248,0.32145217,136.15,136.1,0.04775671]
[1768036726439,5.55820161,136.14,136.1,0.04775671]
[1768036726641,0.32145217,136.15,136.1,0.04775671]
[1768036726938,5.87451834,136.14,136.1,0.04775671]
[1768036727139,0.31631673,136.14,136.1,0.04775671]
[1768036756269,0.37265114,136.13,136.09,6.6217]
[1768036759976,0.37265114,136.13,136.07,6.6224]
[1768036772684,0.37265114,136.13,136.08,6.6223]
[1768036773088,0.32440497,136.13,136.08,6.6223]
[1768036773486,0.05235172,136.12,136.08,6.6223]
[1768036800896,0.31689798,136.15,136.09,6.6217]
[1768036801104,5.55232825,136.14,136.09,6.67747204]
[1768036801404,0.31689798,136.15,136.09,6.67747204]
[1768036801602,5.55192485,136.14,136.09,6.67747204]
[1768036801900,0.31689798,136.15,136.09,6.67747204]
[1768036802102,5.5519231,136.14,136.09,6.67747204]
[1768036802303,8.0881277,136.17,136.09,6.67747204]
[1768036802496,5.55076525,136.16,136.09,6.67747204]
[1768036802803,5.55076525,136.15,136.09,6.67747204]
[1768036803003,8.0881277,136.17,136.09,6.67747204]
[1768036803203,5.55073872,136.16,136.09,6.67747204]
[1768036803400,5.55073872,136.15,136.09,6.67747204]
[1768036803598,8.0881277,136.17,136.09,6.67747204]
[1768036803799,5.55020791,136.16,136.09,6.67747204]
[1768036804098,5.55020791,136.15,136.09,6.67747204]
[1768036804300,8.0881277,136.17,136.09,6.67747204]
[1768036804498,5.54974541,136.16,136.09,6.67747204]
[1768036804704,5.54974541,136.15,136.09,6.67747204]
[1768036804893,8.0881277,136.17,136.09,6.67747204]
[1768036805096,5.54974541,136.16,136.09,6.67747204]
[1768036805295,5.54974541,136.15,136.09,6.67747204]
[1768036805495,8.0881277,136.17,136.09,6.67747204]
[1768036805698,5.54934629,136.16,136.09,6.67747204]
[1768036805897,5.54934629,136.15,136.09,6.67747204]
[1768036806097,8.0881277,136.17,136.09,6.67747204]
[1768036806298,5.54929564,136.16,136.09,6.67747204]
[1768036806502,5.54929564,136.15,136.09,6.67747204]
[1768036806702,8.0881277,136.17,136.09,6.67747204]
[1768036807011,5.86379786,136.16,136.09,6.67747204]
[1768036807198,5.54899395,136.15,136.09,6.67747204]
[1768036807399,0.31480391,136.16,136.09,6.67747204]
[1768036807599,5.54867971,136.15,136.09,6.67747204]
[1768036807898,0.31480391,136.16,136.09,6.67747204]
[1768036808098,5.54867971,136.15,136.09,6.67747204]
[1768036808300,0.31480391,136.16,136.09,6.67747204]
[1768036808498,5.54839611,136.15,136.09,6.67747204]
[1768036808704,0.31480391,136.16,136.09,6.67747204]
[1768036808904,5.54839611,136.15,136.09,6.67747204]
[1768036809105,0.31480391,136.16,136.09,6.67747204]
[1768036809306,5.54835084,136.15,136.09,6.67747204]
[1768036809508,0.31480391,136.16,136.09,6.67747204]
[1768036809708,5.53189509,136.15,136.09,6.67747204]
[1768036809908,0.31480391,136.16,136.09,6.67747204]
[1768036810208,5.53189509,136.15,136.09,6.67747204]
[1768036810408,0.31480391,136.16,136.09,6.67747204]
[1768036810609,5.53168511,136.15,136.09,6.67747204]
[1768036810814,0.31480391,136.16,136.09,6.67747204]
[1768036811016,5.53168511,136.15,136.09,6.67747204]
[1768036811212,0.31480391,136.16,136.09,6.67747204]
[1768036811513,5.53149962,136.15,136.09,6.67747204]
[1768036811704,0.31480391,136.16,136.09,6.67747204]
[1768036811900,5.53149962,136.15,136.09,6.67747204]
[1768036812112,0.31480391,136.16,136.09,6.67747204]
[1768036812313,5.53145761,136.15,136.09,6.67747204]
[1768036812516,0.31480391,136.16,136.09,6.67747204]
[1768036812813,5.53133637,136.15,136.09,6.67747204]
[1768036813013,0.31480391,136.16,136.09,6.67747204]
[1768036813215,5.53129651,136.15,136.09,6.67747204]
[1768036813414,0.31480391,136.16,136.09,6.67747204]
[1768036813619,5.53119362,136.15,136.09,6.67747204]
[1768036813916,0.31480391,136.16,136.09,6.67747204]
[1768036814115,5.53119389,136.15,136.09,6.67747204]
[1768036814311,0.31480391,136.16,136.09,6.67747204]
[1768036814616,5.53106954,136.15,136.09,6.67747204]
[1768036814917,0.31480391,136.16,136.09,6.67747204]
[1768036815108,5.53106954,136.15,136.09,6.67747204]
[1768036815307,0.31480391,136.16,136.09,6.67747204]
[1768036815507,5.53096329,136.15,136.09,6.67747204]
[1768036815704,0.31480391,136.16,136.09,6.67747204]
[1768036816018,0.31480391,136.18,136.09,0.05577204]
[1768036816311,5.53033631,136.17,136.09,0.05577204]
[1768036816518,0.31480391,136.18,136.08,1.15282972]
[1768036816704,5.52941995,136.17,136.08,1.15282972]
[1768036816911,0.31480391,136.18,136.12,0.05009331]
[1768036817112,5.52941821,136.17,136.12,0.05009331]
[1768036817316,0.31480391,136.18,136.12,0.05009331]
[1768036817510,5.52860289,136.17,136.12,0.05009331]
[1768036817715,0.31480391,136.18,136.12,0.05009331]
[1768036818019,5.8434068,136.17,136.12,0.05009331]
[1768036818221,0.31480391,136.17,136.12,0.05009331]
[1768036827726,8.08483363,136.19,136.12,0.05009331]
[1768036827926,5.83841812,136.18,136.12,0.05009331]
[1768036828130,0.31480391,136.18,136.12,0.05009331]
[1768036838242,0.31480391,136.18,136.12,6.67039331]
[1768036839943,0.31480391,136.18,136.13,6.6198]
[1768036840133,0.31480391,136.18,136.12,0.05009331]
[1768036841540,0.31480391,136.18,136.14,6.6193]
[1768036843443,87.16754493,136.2,136.14,6.6193]
[1768036843740,0.32754493,136.2,136.14,6.6193]
[1768036844336,0.32754493,136.2,136.16,0.05467608]
[1768036845446,0.32754493,136.23,136.16,0.05467608]
[1768036845646,5.84771377,136.22,136.16,0.05467608]
[1768036845947,0.32754493,136.22,136.16,0.05467608]
[1768036854052,0.32754493,136.22,136.16,6.67287608]
[1768036864258,0.32754493,136.22,136.16,0.05467608]
[1768036865561,0.30028797,136.21,136.16,0.05467608]
[1768036866661,0.30028797,136.2,136.16,0.05467608]
[1768036868361,0.30028797,136.19,136.12,6.6201]
[1768036868562,0.3488631,136.19,136.12,6.6201]
[1768036871666,0.3488631,136.19,136.13,6.6198]
[1768036872064,0.30028797,136.19,136.13,6.6198]
[1768036872665,0.05178563,136.17,136.13,6.6198]
[1768036883166,0.3520736,136.17,136.13,6.6198]
[1768036883367,0.3520736,136.17,136.11,6.6206]
[1768036913506,0.3520736,136.17,136.09,87.97234936]
[1768036914104,0.3520736,136.17,136.1,6.6212]
[1768036916002,0.3520736,136.17,136.09,86.82]
[1768036919200,0.3520736,136.17,136.09,93.4417]
[1768036920709,0.3520736,136.17,136.1,6.6211]
[1768036930216,0.05178563,136.17,136.1,6.6211]
[1768036940923,0.05178563,136.17,136.11,6.6207]
[1768036950630,0.05178563,136.17,136.09,94.59374936]
[1768036951132,0.05178563,136.17,136.09,87.97234936]
[1768036952733,0.05178563,136.17,136.1,6.6213]
[1768036962245,6.99653835,136.17,136.1,6.6213]
[1768036962541,5.52020211,136.16,136.1,6.6213]
[1768036962741,6.99653835,136.17,136.1,6.6213]
[1768036962953,5.52020039,136.16,136.1,6.6213]
[1768036963148,6.99653835,136.17,136.1,6.6213]
[1768036963447,5.52004372,136.16,136.1,6.6213]
[1768036963641,6.99653835,136.17,136.1,6.6213]
[1768036963842,5.52028593,136.16,136.1,6.6213]
[1768036964044,6.99653835,136.17,136.1,6.6213]
[1768036964240,5.5202859,136.16,136.1,6.6213]
[1768036964545,6.99653835,136.17,136.1,6.6213]
[1768036964745,5.52035996,136.16,136.1,6.6213]
[1768036964944,6.99653835,136.17,136.1,6.6213]
[1768036965145,5.52035996,136.16,136.1,6.6213]
[1768036965346,6.99653835,136.17,136.1,6.6213]
[1768036965543,5.52018955,136.16,136.1,6.6213]
[1768036965758,6.99653835,136.17,136.1,6.6213]
[1768036965957,5.52018955,136.16,136.1,6.6213]
[1768036966255,6.99653835,136.17,136.1,6.6213]
[1768036966456,5.52004223,136.16,136.1,6.6213]
[1768036966643,6.99653835,136.17,136.1,6.6213]
[1768036966843,5.52003716,136.16,136.1,6.6213]
[1768036967042,6.99653835,136.17,136.1,6.6213]
[1768036967257,5.52003716,136.16,136.1,6.6213]
[1768036967456,6.99653835,136.17,136.1,6.6213]
[1768036967656,5.51989308,136.16,136.1,6.6213]
[1768036967846,6.99653835,136.17,136.1,6.6213]
[1768036968152,5.51989308,136.16,136.1,6.6213]
[1768036968449,6.99653835,136.17,136.1,6.6213]
[1768036968652,5.51976064,136.16,136.1,6.6213]
[1768036968853,6.99653835,136.17,136.1,6.6213]
[1768036969152,5.51976064,136.16,136.1,6.6213]
[1768036969350,6.99653835,136.17,136.1,6.6213]
[1768036969552,5.51963442,136.16,136.1,6.6213]
[1768036969756,6.99653835,136.17,136.1,6.6213]
[1768036969953,5.51963442,136.16,136.1,6.6213]
[1768036970145,6.99653835,136.17,136.1,6.6213]
[1768036970345,5.51963442,136.16,136.1,6.6213]
[1768036970551,6.99653835,136.17,136.1,6.6213]
[1768036970759,5.51951388,136.16,136.1,6.6213]
[1768036971061,6.99653835,136.17,136.1,6.6213]
[1768036971261,5.51951388,136.16,136.1,6.6213]
[1768036971451,6.99653835,136.17,136.1,6.6213]
[1768036971652,5.51939855,136.16,136.1,6.6213]
[1768036971860,6.99653835,136.17,136.1,6.6213]
[1768036972056,5.51939855,136.16,136.1,6.6213]
[1768036972260,6.99653835,136.17,136.1,6.6213]
[1768036972460,5.51928803,136.16,136.1,6.6213]
[1768036972660,6.99653835,136.17,136.1,6.6213]
[1768036972863,5.51928803,136.16,136.1,6.6213]
[1768036973167,6.99653835,136.17,136.1,6.6213]
[1768036973464,5.51918198,136.16,136.1,6.6213]
[1768036973662,0.37853835,136.17,136.11,6.6207]
[1768036974164,0.32675272,136.17,136.11,6.6207]
[1768036974665,0.05343082,136.15,136.11,6.6207]
[1768037005590,0.37354768,136.15,136.09,93.4415]